[Event "Titled Tuesday Blitz March 21 Late 2023"]
[White "marik_spb"]
[Black "Rose, Felix"]
[BlackFideId "5105722"]
[WhiteElo "2416"]
[BlackElo "2039"]
[Result "1-0"]
[Round "09"]
[TimeControl "180+2"]
[Date "2023.03.21"]
[WhiteClock "0:01:17"]
[BlackClock "0:00:26"]

1. d4 {[%clk 0:02:15]}  Nf6 {[%clk 0:02:59]} 2. c4 {[%clk 0:02:14]}  e6 {[%clk 0:02:59]} 3. Nf3 {[%clk 0:02:15]}  d5 {[%clk 0:02:59]} 4. g3 {[%clk 0:02:15]}  dxc4 {[%clk 0:02:58]} 5. Bg2 {[%clk 0:02:16]}  a6 {[%clk 0:02:59]} 6. O-O {[%clk 0:02:16]}  Nc6 {[%clk 0:02:59]} 7. Nbd2 {[%clk 0:02:15]}  Nxd4 {[%clk 0:02:56]} 8. Nxc4 {[%clk 0:02:13]}  Nxf3+ {[%clk 0:02:56]} 9. Bxf3 {[%clk 0:02:14]}  Qxd1 {[%clk 0:02:55]} 10. Rxd1 {[%clk 0:02:15]}  Be7 {[%clk 0:02:54]} 11. Bf4 {[%clk 0:02:15]}  Bd8 {[%clk 0:02:53]} 12. Na5 {[%clk 0:01:58]}  c6 {[%clk 0:02:35]} 13. Nxc6 {[%clk 0:01:55]}  Bd7 {[%clk 0:02:07]} 14. Ne5 {[%clk 0:01:49]}  Bc8 {[%clk 0:00:55]} 15. Rxd8+ {[%clk 0:01:48]}  Kxd8 {[%clk 0:00:55]} 16. Nxf7+ {[%clk 0:01:49]}  Ke7 {[%clk 0:00:56]} 17. Nxh8 {[%clk 0:01:49]}  Bd7 {[%clk 0:00:56]} 18. Bxb7 {[%clk 0:01:39]}  Rxh8 {[%clk 0:00:56]} 19. Bxa6 {[%clk 0:01:39]}  Bc6 {[%clk 0:00:52]} 20. Rc1 {[%clk 0:01:37]}  Kd7 {[%clk 0:00:47]} 21. Bc4 {[%clk 0:01:23]}  Bd5 {[%clk 0:00:39]} 22. Bxd5 {[%clk 0:01:21]}  Nxd5 {[%clk 0:00:40]} 23. Be5 {[%clk 0:01:21]}  Ra8 {[%clk 0:00:38]} 24. a3 {[%clk 0:01:22]}  g6 {[%clk 0:00:37]} 25. e4 {[%clk 0:01:22]}  Ne7 {[%clk 0:00:36]} 26. Rc7+ {[%clk 0:01:21]}  Kd8 {[%clk 0:00:34]} 27. Rb7 {[%clk 0:01:20]}  Ra4 {[%clk 0:00:29]} 28. Bf6 {[%clk 0:01:19]}  Rxe4 {[%clk 0:00:26]} 29. Rxe7 {[%clk 0:01:17]} 1-0


[Site "https://www.chess.com"]

[Event "Titled Tuesday Blitz March 21 Late 2023"]
[White "Tymrakiewicz, Rafal"]
[Black "Bullen, Alex"]
[WhiteFideId "1108832"]
[BlackFideId "1801627"]
[WhiteElo "2151"]
[BlackElo "2088"]
[Result "1-0"]
[Round "09"]
[TimeControl "180+2"]
[Date "2023.03.21"]
[WhiteClock "0:00:11"]
[BlackClock "0:00:01"]

1. e4 {[%clk 0:02:39]}  c6 {[%clk 0:02:57]} 2. d4 {[%clk 0:02:38]}  d5 {[%clk 0:02:58]} 3. e5 {[%clk 0:02:39]}  g6 {[%clk 0:02:57]} 4. f4 {[%clk 0:02:35]}  h5 {[%clk 0:02:57]} 5. Nf3 {[%clk 0:02:21]}  Bg4 {[%clk 0:02:57]} 6. Nbd2 {[%clk 0:02:20]}  e6 {[%clk 0:02:56]} 7. h3 {[%clk 0:02:19]}  Bxf3 {[%clk 0:02:56]} 8. Nxf3 {[%clk 0:02:19]}  Be7 {[%clk 0:02:56]} 9. g3 {[%clk 0:02:20]}  Nh6 {[%clk 0:02:54]} 10. Bg2 {[%clk 0:02:16]}  Nf5 {[%clk 0:02:53]} 11. Kf2 {[%clk 0:02:16]}  c5 {[%clk 0:02:52]} 12. c3 {[%clk 0:02:16]}  Nc6 {[%clk 0:02:52]} 13. Be3 {[%clk 0:02:16]}  Nxe3 {[%clk 0:02:43]} 14. Kxe3 {[%clk 0:02:15]}  Qb6 {[%clk 0:02:42]} 15. Qb3 {[%clk 0:02:06]}  cxd4+ {[%clk 0:02:29]} 16. Nxd4 {[%clk 0:02:06]}  Bc5 {[%clk 0:02:16]} 17. Qxb6 {[%clk 0:02:05]}  Bxb6 {[%clk 0:02:08]} 18. a3 {[%clk 0:01:53]}  Kd7 {[%clk 0:02:04]} 19. Kd3 {[%clk 0:01:52]}  Nxd4 {[%clk 0:01:41]} 20. cxd4 {[%clk 0:01:52]}  Rac8 {[%clk 0:01:41]} 21. Rac1 {[%clk 0:01:52]}  Rxc1 {[%clk 0:01:37]} 22. Rxc1 {[%clk 0:01:51]}  Rc8 {[%clk 0:01:37]} 23. Rxc8 {[%clk 0:01:51]}  Kxc8 {[%clk 0:01:38]} 24. g4 {[%clk 0:01:41]}  hxg4 {[%clk 0:01:36]} 25. hxg4 {[%clk 0:01:42]}  Kd7 {[%clk 0:01:33]} 26. f5 {[%clk 0:01:42]}  gxf5 {[%clk 0:01:32]} 27. gxf5 {[%clk 0:01:43]}  Ke7 {[%clk 0:01:30]} 28. Bf3 {[%clk 0:01:28]}  Kd7 {[%clk 0:01:13]} 29. f6 {[%clk 0:01:05]}  Ke8 {[%clk 0:01:11]} 30. Bh5 {[%clk 0:01:01]}  Kf8 {[%clk 0:01:10]} 31. Bd1 {[%clk 0:01:01]}  Ke8 {[%clk 0:01:11]} 32. Ba4+ {[%clk 0:01:01]}  Kf8 {[%clk 0:01:08]} 33. Bd7 {[%clk 0:01:01]}  a6 {[%clk 0:00:21]} 34. Bc8 {[%clk 0:00:57]}  a5 {[%clk 0:00:20]} 35. Bxb7 {[%clk 0:00:56]}  Ke8 {[%clk 0:00:19]} 36. Bc6+ {[%clk 0:00:47]}  Kd8 {[%clk 0:00:19]} 37. Ba4 {[%clk 0:00:47]}  Ba7 {[%clk 0:00:19]} 38. Bd1 {[%clk 0:00:32]}  Bb6 {[%clk 0:00:18]} 39. Kc3 {[%clk 0:00:28]}  Ba7 {[%clk 0:00:17]} 40. Ba4 {[%clk 0:00:25]}  Bb6 {[%clk 0:00:16]} 41. Bb5 {[%clk 0:00:24]}  Ba7 {[%clk 0:00:16]} 42. Be2 {[%clk 0:00:22]}  Bb6 {[%clk 0:00:17]} 43. Bh5 {[%clk 0:00:23]}  Ke8 {[%clk 0:00:17]} 44. Kd3 {[%clk 0:00:22]}  Ba7 {[%clk 0:00:17]} 45. Ke3 {[%clk 0:00:23]}  Bb6 {[%clk 0:00:16]} 46. Bd1 {[%clk 0:00:21]}  Kd8 {[%clk 0:00:17]} 47. Ba4 {[%clk 0:00:20]}  Ba7 {[%clk 0:00:17]} 48. Bc6 {[%clk 0:00:20]}  Bb6 {[%clk 0:00:16]} 49. Kd3 {[%clk 0:00:19]}  Ba7 {[%clk 0:00:16]} 50. Kc3 {[%clk 0:00:18]}  Bb6 {[%clk 0:00:17]} 51. Kd3 {[%clk 0:00:16]}  Ba7 {[%clk 0:00:17]} 52. b4 {[%clk 0:00:16]}  axb4 {[%clk 0:00:16]} 53. a4 {[%clk 0:00:17]}  Bb6 {[%clk 0:00:14]} 54. Bb5 {[%clk 0:00:17]}  Ba7 {[%clk 0:00:12]} 55. a5 {[%clk 0:00:16]}  b3 {[%clk 0:00:08]} 56. Ba4 {[%clk 0:00:12]}  b2 {[%clk 0:00:08]} 57. Bc2 {[%clk 0:00:13]}  Kc7 {[%clk 0:00:06]} 58. Kc3 {[%clk 0:00:13]}  Kd8 {[%clk 0:00:03]} 59. a6 {[%clk 0:00:12]}  Bb6 {[%clk 0:00:02]} 60. Kxb2 {[%clk 0:00:10]}  Bxd4+ {[%clk 0:00:02]} 61. Kb3 {[%clk 0:00:11]}  Ba7 {[%clk 0:00:01]} 62. Kb4 {[%clk 0:00:11]} 1-0


[Site "https://www.chess.com"]

[Event "Titled Tuesday Blitz March 21 Late 2023"]
[White "Castellanos Gomez, Alejandro"]
[Black "Hartikainen, Jarmo"]
[WhiteFideId "22284141"]
[BlackFideId "503134"]
[WhiteElo "2158"]
[BlackElo "2193"]
[Result "1-0"]
[Round "09"]
[TimeControl "180+2"]
[Date "2023.03.21"]
[WhiteClock "0:01:24"]
[BlackClock "0:00:01"]

1. d4 {[%clk 0:03:00]}  Nf6 {[%clk 0:02:59]} 2. Bf4 {[%clk 0:03:00]}  d5 {[%clk 0:02:56]} 3. e3 {[%clk 0:03:01]}  Bf5 {[%clk 0:02:55]} 4. Nd2 {[%clk 0:03:01]}  e6 {[%clk 0:02:52]} 5. Ngf3 {[%clk 0:03:01]}  Bd6 {[%clk 0:02:51]} 6. Bg3 {[%clk 0:03:01]}  Ne4 {[%clk 0:02:50]} 7. Nxe4 {[%clk 0:02:58]}  Bxe4 {[%clk 0:02:49]} 8. Bd3 {[%clk 0:02:58]}  Bxd3 {[%clk 0:02:28]} 9. Qxd3 {[%clk 0:02:59]}  c6 {[%clk 0:02:29]} 10. O-O {[%clk 0:02:58]}  Bxg3 {[%clk 0:02:28]} 11. hxg3 {[%clk 0:02:57]}  Nd7 {[%clk 0:02:28]} 12. g4 {[%clk 0:02:55]}  Qc7 {[%clk 0:02:16]} 13. b4 {[%clk 0:02:52]}  h5 {[%clk 0:02:06]} 14. g5 {[%clk 0:02:47]}  h4 {[%clk 0:02:04]} 15. c4 {[%clk 0:02:42]}  h3 {[%clk 0:01:54]} 16. g3 {[%clk 0:02:40]}  Rh5 {[%clk 0:00:53]} 17. Kh2 {[%clk 0:02:30]}  Kf8 {[%clk 0:00:45]} 18. Rac1 {[%clk 0:02:20]}  Re8 {[%clk 0:00:41]} 19. e4 {[%clk 0:02:10]}  dxe4 {[%clk 0:00:33]} 20. Qxe4 {[%clk 0:02:08]}  Qd8 {[%clk 0:00:30]} 21. Qf4 {[%clk 0:01:50]}  Kg8 {[%clk 0:00:27]} 22. b5 {[%clk 0:01:48]}  Nf8 {[%clk 0:00:27]} 23. bxc6 {[%clk 0:01:47]}  bxc6 {[%clk 0:00:27]} 24. Rb1 {[%clk 0:01:47]}  Ng6 {[%clk 0:00:27]} 25. Qg4 {[%clk 0:01:47]}  Rh7 {[%clk 0:00:23]} 26. Rb7 {[%clk 0:01:48]}  e5 {[%clk 0:00:17]} 27. Qf5 {[%clk 0:01:45]}  Rf8 {[%clk 0:00:15]} 28. dxe5 {[%clk 0:01:44]}  Qe8 {[%clk 0:00:09]} 29. Rd1 {[%clk 0:01:39]}  Qe6 {[%clk 0:00:09]} 30. Qe4 {[%clk 0:01:31]}  Rh5 {[%clk 0:00:03]} 31. Rd6 {[%clk 0:01:26]}  Qe8 {[%clk 0:00:01]} 32. Qxc6 {[%clk 0:01:24]} 1-0


[Site "https://www.chess.com"]

[Event "Titled Tuesday Blitz March 21 Late 2023"]
[White "Rios Escobar, Adan"]
[Black "Manu_ChessExcelsior"]
[WhiteFideId "3403645"]
[WhiteElo "2404"]
[BlackElo "2073"]
[Result "1-0"]
[Round "09"]
[TimeControl "180+2"]
[Date "2023.03.21"]
[WhiteClock "0:00:23"]
[BlackClock "0:00:03"]

1. d4 {[%clk 0:02:48]}  d5 {[%clk 0:02:59]} 2. g3 {[%clk 0:02:48]}  Nf6 {[%clk 0:02:58]} 3. Nf3 {[%clk 0:02:48]}  e6 {[%clk 0:02:59]} 4. Bg2 {[%clk 0:02:47]}  Be7 {[%clk 0:02:59]} 5. O-O {[%clk 0:02:48]}  O-O {[%clk 0:02:59]} 6. c4 {[%clk 0:02:48]}  dxc4 {[%clk 0:02:59]} 7. Qc2 {[%clk 0:02:49]}  a6 {[%clk 0:02:59]} 8. a4 {[%clk 0:02:50]}  Bd7 {[%clk 0:02:57]} 9. Rd1 {[%clk 0:02:50]}  Bc6 {[%clk 0:02:57]} 10. Nc3 {[%clk 0:02:51]}  Nbd7 {[%clk 0:02:47]} 11. e4 {[%clk 0:02:50]}  Re8 {[%clk 0:02:37]} 12. d5 {[%clk 0:02:46]}  exd5 {[%clk 0:02:20]} 13. exd5 {[%clk 0:02:44]}  Nxd5 {[%clk 0:02:06]} 14. Nxd5 {[%clk 0:02:44]}  Bd6 {[%clk 0:01:56]} 15. Ng5 {[%clk 0:02:41]}  g6 {[%clk 0:01:51]} 16. h4 {[%clk 0:02:31]}  Ne5 {[%clk 0:01:21]} 17. Be3 {[%clk 0:02:07]}  b5 {[%clk 0:01:16]} 18. axb5 {[%clk 0:02:00]}  axb5 {[%clk 0:01:17]} 19. Rxa8 {[%clk 0:02:00]}  Bxa8 {[%clk 0:01:18]} 20. Ne4 {[%clk 0:01:49]}  Be7 {[%clk 0:00:58]} 21. Nxe7+ {[%clk 0:01:29]}  Qxe7 {[%clk 0:00:57]} 22. Bg5 {[%clk 0:01:30]}  Bxe4 {[%clk 0:00:48]} 23. Qxe4 {[%clk 0:01:08]}  f6 {[%clk 0:00:34]} 24. Bf4 {[%clk 0:00:54]}  Qb4 {[%clk 0:00:24]} 25. Rd7 {[%clk 0:00:34]}  Nxd7 {[%clk 0:00:08]} 26. Qxe8+ {[%clk 0:00:33]}  Nf8 {[%clk 0:00:09]} 27. Bd5+ {[%clk 0:00:31]}  Kh8 {[%clk 0:00:03]} 28. Qf7 {[%clk 0:00:26]}  Qe1+ {[%clk 0:00:03]} 29. Kg2 {[%clk 0:00:23]} 1-0


[Site "https://www.chess.com"]

[Event "Titled Tuesday Blitz March 21 Late 2023"]
[White "dorpato"]
[Black "Guzman Moneo, Alberto"]
[BlackFideId "2209616"]
[WhiteElo "2035"]
[BlackElo "2157"]
[Result "0-1"]
[Round "09"]
[TimeControl "180+2"]
[Date "2023.03.21"]
[WhiteClock "0:00:17"]
[BlackClock "0:01:38"]

1. d4 {[%clk 0:03:00]}  Nf6 {[%clk 0:02:59]} 2. c4 {[%clk 0:02:59]}  c5 {[%clk 0:02:59]} 3. d5 {[%clk 0:02:58]}  b5 {[%clk 0:02:59]} 4. cxb5 {[%clk 0:02:58]}  a6 {[%clk 0:02:59]} 5. bxa6 {[%clk 0:02:59]}  g6 {[%clk 0:02:59]} 6. Nc3 {[%clk 0:02:59]}  Bxa6 {[%clk 0:02:59]} 7. e4 {[%clk 0:02:59]}  Bxf1 {[%clk 0:03:00]} 8. Kxf1 {[%clk 0:02:59]}  d6 {[%clk 0:03:01]} 9. Nf3 {[%clk 0:02:59]}  Qc8 {[%clk 0:03:01]} 10. Qe2 {[%clk 0:02:54]}  Bg7 {[%clk 0:03:00]} 11. h3 {[%clk 0:02:48]}  O-O {[%clk 0:02:54]} 12. g3 {[%clk 0:02:48]}  Qa6 {[%clk 0:02:53]} 13. Qxa6 {[%clk 0:02:41]}  Nxa6 {[%clk 0:02:53]} 14. Kg2 {[%clk 0:02:26]}  Rfb8 {[%clk 0:02:48]} 15. Re1 {[%clk 0:02:15]}  Nd7 {[%clk 0:02:48]} 16. Nd2 {[%clk 0:01:30]}  Nb4 {[%clk 0:02:45]} 17. Rd1 {[%clk 0:01:19]}  Ne5 {[%clk 0:02:31]} 18. a4 {[%clk 0:01:06]}  Nc2 {[%clk 0:02:26]} 19. Ra2 {[%clk 0:01:04]}  Nd3 {[%clk 0:02:18]} 20. Nc4 {[%clk 0:00:49]}  Ndb4 {[%clk 0:02:09]} 21. Ra3 {[%clk 0:00:41]}  Nxa3 {[%clk 0:02:07]} 22. bxa3 {[%clk 0:00:41]}  Bxc3 {[%clk 0:01:59]} 23. axb4 {[%clk 0:00:40]}  Rxb4 {[%clk 0:01:59]} 24. Ne3 {[%clk 0:00:26]}  Rxe4 {[%clk 0:01:54]} 25. Rd3 {[%clk 0:00:21]}  Bd4 {[%clk 0:01:44]} 26. Nc2 {[%clk 0:00:19]}  Rxa4 {[%clk 0:01:40]} 27. f3 {[%clk 0:00:17]}  Re2+ {[%clk 0:01:38]} 0-1


[Site "https://www.chess.com"]

[Event "Titled Tuesday Blitz March 21 Late 2023"]
[White "Carbone, Diego"]
[Black "chessjazda"]
[WhiteFideId "3002179"]
[WhiteElo "2266"]
[BlackElo "2357"]
[Result "1-0"]
[Round "09"]
[TimeControl "180+2"]
[Date "2023.03.21"]
[WhiteClock "0:00:05"]
[BlackClock "0:00:08"]

1. d4 {[%clk 0:03:00]}  c6 {[%clk 0:02:55]} 2. Nf3 {[%clk 0:03:00]}  d5 {[%clk 0:02:55]} 3. c4 {[%clk 0:03:00]}  Nf6 {[%clk 0:02:53]} 4. e3 {[%clk 0:03:00]}  Bf5 {[%clk 0:02:48]} 5. Nc3 {[%clk 0:03:00]}  e6 {[%clk 0:02:42]} 6. Nh4 {[%clk 0:02:56]}  Bg6 {[%clk 0:02:41]} 7. Be2 {[%clk 0:02:53]}  Nbd7 {[%clk 0:02:40]} 8. O-O {[%clk 0:02:52]}  Bd6 {[%clk 0:02:38]} 9. g3 {[%clk 0:02:52]}  O-O {[%clk 0:02:37]} 10. Nxg6 {[%clk 0:02:23]}  hxg6 {[%clk 0:02:36]} 11. Qb3 {[%clk 0:02:24]}  Qb6 {[%clk 0:02:28]} 12. Rd1 {[%clk 0:02:18]}  Qxb3 {[%clk 0:02:26]} 13. axb3 {[%clk 0:02:18]}  a6 {[%clk 0:02:27]} 14. f3 {[%clk 0:02:15]}  Rad8 {[%clk 0:02:20]} 15. Kg2 {[%clk 0:02:15]}  Rfe8 {[%clk 0:02:19]} 16. Bd2 {[%clk 0:02:08]}  Bb8 {[%clk 0:02:08]} 17. Be1 {[%clk 0:01:58]}  Bc7 {[%clk 0:01:58]} 18. Bf2 {[%clk 0:01:58]}  Bd6 {[%clk 0:01:46]} 19. Rac1 {[%clk 0:01:56]}  Bb4 {[%clk 0:01:46]} 20. h4 {[%clk 0:01:43]}  Rc8 {[%clk 0:01:33]} 21. g4 {[%clk 0:01:39]}  Bd6 {[%clk 0:01:31]} 22. Rh1 {[%clk 0:01:32]}  e5 {[%clk 0:01:27]} 23. cxd5 {[%clk 0:01:27]}  exd4 {[%clk 0:01:20]} 24. dxc6 {[%clk 0:01:20]}  Rxc6 {[%clk 0:01:07]} 25. exd4 {[%clk 0:00:56]}  Rxc3 {[%clk 0:01:05]} 26. bxc3 {[%clk 0:00:49]}  Rxe2 {[%clk 0:01:05]} 27. Rhe1 {[%clk 0:00:48]}  Rb2 {[%clk 0:01:02]} 28. Rb1 {[%clk 0:00:48]}  Rc2 {[%clk 0:00:58]} 29. Rec1 {[%clk 0:00:48]}  Rxc1 {[%clk 0:00:54]} 30. Rxc1 {[%clk 0:00:49]}  Bf4 {[%clk 0:00:54]} 31. Rd1 {[%clk 0:00:41]}  Nd5 {[%clk 0:00:49]} 32. Rd3 {[%clk 0:00:31]}  N7f6 {[%clk 0:00:45]} 33. g5 {[%clk 0:00:28]}  Nd7 {[%clk 0:00:39]} 34. Bg3 {[%clk 0:00:21]}  Kf8 {[%clk 0:00:39]} 35. c4 {[%clk 0:00:20]}  Bxg3 {[%clk 0:00:39]} 36. Kxg3 {[%clk 0:00:19]}  Nb4 {[%clk 0:00:39]} 37. Rd2 {[%clk 0:00:16]}  Ke7 {[%clk 0:00:33]} 38. Kg4 {[%clk 0:00:16]}  Kd6 {[%clk 0:00:31]} 39. f4 {[%clk 0:00:16]}  b5 {[%clk 0:00:28]} 40. Rd1 {[%clk 0:00:07]}  bxc4 {[%clk 0:00:19]} 41. bxc4 {[%clk 0:00:08]}  Nc2 {[%clk 0:00:19]} 42. Kf3 {[%clk 0:00:07]}  a5 {[%clk 0:00:14]} 43. Ke4 {[%clk 0:00:07]}  a4 {[%clk 0:00:13]} 44. Rc1 {[%clk 0:00:06]}  Nb4 {[%clk 0:00:12]} 45. Ra1 {[%clk 0:00:06]}  Nb6 {[%clk 0:00:11]} 46. c5+ {[%clk 0:00:06]}  Kc6 {[%clk 0:00:11]} 47. cxb6 {[%clk 0:00:07]}  Kxb6 {[%clk 0:00:11]} 48. Rxa4 {[%clk 0:00:07]}  Nc6 {[%clk 0:00:10]} 49. Ra1 {[%clk 0:00:07]}  Ne7 {[%clk 0:00:10]} 50. Rb1+ {[%clk 0:00:08]}  Kc6 {[%clk 0:00:11]} 51. Rc1+ {[%clk 0:00:08]}  Kd6 {[%clk 0:00:11]} 52. Ra1 {[%clk 0:00:09]}  Nf5 {[%clk 0:00:11]} 53. Ra6+ {[%clk 0:00:07]}  Ke7 {[%clk 0:00:11]} 54. Ra7+ {[%clk 0:00:07]}  Ke6 {[%clk 0:00:11]} 55. d5+ {[%clk 0:00:07]}  Kd6 {[%clk 0:00:11]} 56. Rxf7 {[%clk 0:00:07]}  Nxh4 {[%clk 0:00:11]} 57. Rxg7 {[%clk 0:00:07]}  Kc5 {[%clk 0:00:10]} 58. Ke5 {[%clk 0:00:05]}  Nf3+ {[%clk 0:00:11]} 59. Ke6 {[%clk 0:00:05]}  Nd4+ {[%clk 0:00:11]} 60. Ke7 {[%clk 0:00:05]}  Kxd5 {[%clk 0:00:12]} 61. Rxg6 {[%clk 0:00:05]}  Ke4 {[%clk 0:00:12]} 62. Kf6 {[%clk 0:00:05]}  Nf3 {[%clk 0:00:11]} 63. Rg8 {[%clk 0:00:05]}  Kxf4 {[%clk 0:00:10]} 64. g6 {[%clk 0:00:06]}  Nh4 {[%clk 0:00:09]} 65. g7 {[%clk 0:00:06]}  Nf5 {[%clk 0:00:08]} 66. Rf8 {[%clk 0:00:06]}  Kg4 {[%clk 0:00:08]} 67. g8=Q+ {[%clk 0:00:05]}  Kh5 {[%clk 0:00:08]} 68. Kxf5 {[%clk 0:00:05]}  Kh4 {[%clk 0:00:08]} 69. Qg4# {[%clk 0:00:05]} 1-0


[Site "https://www.chess.com"]

[Event "Titled Tuesday Blitz March 21 Late 2023"]
[White "Kaplan, Avi Harrison"]
[Black "Romero Ruscalleda, Josep"]
[WhiteFideId "30934559"]
[BlackFideId "2231859"]
[WhiteElo "1983"]
[BlackElo "2183"]
[Result "1-0"]
[Round "09"]
[TimeControl "180+2"]
[Date "2023.03.21"]
[WhiteClock "0:00:10"]
[BlackClock "0:00:02"]

1. e4 {[%clk 0:02:57]}  g6 {[%clk 0:03:00]} 2. c4 {[%clk 0:02:56]}  Bg7 {[%clk 0:03:01]} 3. d4 {[%clk 0:02:56]}  d6 {[%clk 0:03:00]} 4. h4 {[%clk 0:02:54]}  h5 {[%clk 0:02:57]} 5. a4 {[%clk 0:02:53]}  Nc6 {[%clk 0:02:56]} 6. d5 {[%clk 0:02:52]}  Nd4 {[%clk 0:02:56]} 7. Nc3 {[%clk 0:02:47]}  c5 {[%clk 0:02:56]} 8. Nge2 {[%clk 0:02:39]}  e5 {[%clk 0:02:54]} 9. Nxd4 {[%clk 0:02:32]}  exd4 {[%clk 0:02:52]} 10. Ne2 {[%clk 0:02:30]}  Nf6 {[%clk 0:02:51]} 11. Bg5 {[%clk 0:02:23]}  Qa5+ {[%clk 0:02:48]} 12. Bd2 {[%clk 0:02:21]}  Qc7 {[%clk 0:02:45]} 13. Qc2 {[%clk 0:02:19]}  O-O {[%clk 0:02:43]} 14. f3 {[%clk 0:02:10]}  Nd7 {[%clk 0:02:31]} 15. Nc1 {[%clk 0:02:07]}  Rb8 {[%clk 0:02:15]} 16. Be2 {[%clk 0:02:02]}  a6 {[%clk 0:02:10]} 17. g4 {[%clk 0:01:43]}  hxg4 {[%clk 0:01:50]} 18. fxg4 {[%clk 0:01:21]}  Ne5 {[%clk 0:01:49]} 19. Rg1 {[%clk 0:01:15]}  Qd8 {[%clk 0:01:46]} 20. Bg5 {[%clk 0:01:11]}  f6 {[%clk 0:01:41]} 21. Bf4 {[%clk 0:01:09]}  Qe7 {[%clk 0:01:26]} 22. Nd3 {[%clk 0:01:02]}  Re8 {[%clk 0:01:17]} 23. Nxe5 {[%clk 0:00:58]}  dxe5 {[%clk 0:01:14]} 24. Bd2 {[%clk 0:00:55]}  f5 {[%clk 0:01:06]} 25. Bg5 {[%clk 0:00:54]}  Qf7 {[%clk 0:01:02]} 26. gxf5 {[%clk 0:00:53]}  gxf5 {[%clk 0:01:02]} 27. Bh6 {[%clk 0:00:49]}  Kh8 {[%clk 0:00:52]} 28. Bxg7+ {[%clk 0:00:48]}  Kh7 {[%clk 0:00:52]} 29. h5 {[%clk 0:00:30]}  f4 {[%clk 0:00:44]} 30. O-O-O {[%clk 0:00:27]}  f3 {[%clk 0:00:31]} 31. Rdf1 {[%clk 0:00:26]}  Qf4+ {[%clk 0:00:29]} 32. Kb1 {[%clk 0:00:25]}  Bg4 {[%clk 0:00:27]} 33. Qd3 {[%clk 0:00:21]}  Re7 {[%clk 0:00:12]} 34. Bxf3 {[%clk 0:00:20]}  Bxf3 {[%clk 0:00:07]} 35. Rxf3 {[%clk 0:00:17]}  Qh4 {[%clk 0:00:07]} 36. Bf6 {[%clk 0:00:13]}  Qh2 {[%clk 0:00:05]} 37. Rfg3 {[%clk 0:00:09]}  Rf7 {[%clk 0:00:04]} 38. Rg7+ {[%clk 0:00:09]}  Rxg7 {[%clk 0:00:04]} 39. Rxg7+ {[%clk 0:00:10]}  Kh6 {[%clk 0:00:03]} 40. Qg3 {[%clk 0:00:10]}  Qh1+ {[%clk 0:00:02]} 41. Ka2 {[%clk 0:00:10]} 1-0


[Site "https://www.chess.com"]

[Event "Titled Tuesday Blitz March 21 Late 2023"]
[White "Sabar, Ethmane Daouda"]
[Black "Smith, Garrett L"]
[WhiteFideId "19600097"]
[BlackFideId "2024829"]
[WhiteElo "1950"]
[BlackElo "2299"]
[Result "1-0"]
[Round "09"]
[TimeControl "180+2"]
[Date "2023.03.21"]
[WhiteClock "0:01:35"]
[BlackClock "0:00:50"]

1. b3 {[%clk 0:02:56]}  g6 {[%clk 0:02:58]} 2. Bb2 {[%clk 0:02:57]}  Nf6 {[%clk 0:02:59]} 3. Bxf6 {[%clk 0:02:57]}  exf6 {[%clk 0:02:59]} 4. c4 {[%clk 0:02:57]}  Bg7 {[%clk 0:02:57]} 5. Nc3 {[%clk 0:02:58]}  f5 {[%clk 0:02:55]} 6. g3 {[%clk 0:02:58]}  d6 {[%clk 0:02:54]} 7. Bg2 {[%clk 0:02:58]}  Nc6 {[%clk 0:02:53]} 8. e3 {[%clk 0:02:58]}  O-O {[%clk 0:02:51]} 9. Nge2 {[%clk 0:02:59]}  Be6 {[%clk 0:02:42]} 10. O-O {[%clk 0:02:59]}  Qc8 {[%clk 0:02:30]} 11. d4 {[%clk 0:02:58]}  Ne7 {[%clk 0:02:29]} 12. d5 {[%clk 0:02:55]}  Bd7 {[%clk 0:02:29]} 13. Rb1 {[%clk 0:02:49]}  Re8 {[%clk 0:02:29]} 14. b4 {[%clk 0:02:48]}  Kh8 {[%clk 0:02:25]} 15. c5 {[%clk 0:02:47]}  Ng8 {[%clk 0:02:22]} 16. Qc2 {[%clk 0:02:26]}  a5 {[%clk 0:02:20]} 17. c6 {[%clk 0:02:14]}  bxc6 {[%clk 0:02:18]} 18. dxc6 {[%clk 0:02:15]}  Be6 {[%clk 0:02:18]} 19. b5 {[%clk 0:02:14]}  Ne7 {[%clk 0:01:57]} 20. Nf4 {[%clk 0:02:04]}  Rd8 {[%clk 0:01:50]} 21. Nfd5 {[%clk 0:01:49]}  Nxd5 {[%clk 0:01:44]} 22. Nxd5 {[%clk 0:01:43]}  Bxd5 {[%clk 0:01:25]} 23. Bxd5 {[%clk 0:01:44]}  Rf8 {[%clk 0:01:17]} 24. Qc4 {[%clk 0:01:42]}  Qe8 {[%clk 0:01:15]} 25. b6 {[%clk 0:01:39]}  cxb6 {[%clk 0:01:15]} 26. Rxb6 {[%clk 0:01:39]}  Qe7 {[%clk 0:00:57]} 27. c7 {[%clk 0:01:38]}  Rac8 {[%clk 0:00:54]} 28. Rc1 {[%clk 0:01:38]}  g5 {[%clk 0:00:50]} 29. Bb7 {[%clk 0:01:35]} 1-0


[Site "https://www.chess.com"]

[Event "Titled Tuesday Blitz March 21 Late 2023"]
[White "Elaisaz"]
[Black "Albuquerque Junior,Wellington S."]
[BlackFideId "2151480"]
[WhiteElo "2216"]
[BlackElo "2109"]
[Result "0-1"]
[Round "09"]
[TimeControl "180+2"]
[Date "2023.03.21"]
[WhiteClock "0:01:27"]
[BlackClock "0:01:27"]

1. d4 {[%clk 0:03:00]}  Nf6 {[%clk 0:02:56]} 2. Nf3 {[%clk 0:02:58]}  c5 {[%clk 0:02:54]} 3. c3 {[%clk 0:02:56]}  g6 {[%clk 0:02:53]} 4. dxc5 {[%clk 0:02:47]}  Bg7 {[%clk 0:02:53]} 5. Nbd2 {[%clk 0:02:44]}  a5 {[%clk 0:02:51]} 6. a4 {[%clk 0:02:39]}  O-O {[%clk 0:02:49]} 7. g3 {[%clk 0:02:33]}  Na6 {[%clk 0:02:49]} 8. Nb3 {[%clk 0:02:32]}  Qc7 {[%clk 0:02:49]} 9. Be3 {[%clk 0:02:29]}  Ng4 {[%clk 0:02:48]} 10. Bd4 {[%clk 0:02:29]}  e5 {[%clk 0:02:48]} 11. h3 {[%clk 0:02:24]}  exd4 {[%clk 0:02:46]} 12. hxg4 {[%clk 0:02:24]}  dxc3 {[%clk 0:02:46]} 13. Nfd4 {[%clk 0:02:22]}  cxb2 {[%clk 0:02:43]} 14. Rb1 {[%clk 0:02:21]}  Nxc5 {[%clk 0:02:30]} 15. Bg2 {[%clk 0:02:05]}  Nxb3 {[%clk 0:02:15]} 16. Nxb3 {[%clk 0:02:05]}  Qc3+ {[%clk 0:01:48]} 17. Kf1 {[%clk 0:02:03]}  d5 {[%clk 0:01:40]} 18. g5 {[%clk 0:01:57]}  Bf5 {[%clk 0:01:40]} 19. e4 {[%clk 0:01:54]}  dxe4 {[%clk 0:01:34]} 20. g4 {[%clk 0:01:52]}  Be6 {[%clk 0:01:28]} 21. Bxe4 {[%clk 0:01:51]}  Bxb3 {[%clk 0:01:28]} 22. Qe2 {[%clk 0:01:27]}  Bc4 {[%clk 0:01:27]} 0-1


[Site "https://www.chess.com"]